bitfinex/quotes_SOLUSD_20260125
["timestamp","ask_amount","ask_price","bid_price","bid_amount"]
[1769357134264,8.57476252,123.6,123.53,12.84837802]
[1769357134436,8.08875297,123.63,123.54,12.36804232]
[1769357134771,4.20803408,123.62,123.54,4.2736155]
[1769357135176,8.08996035,123.61,123.54,4.2736155]
[1769357135339,4.20803408,123.61,123.55,8.57476252]
[1769357135963,8.57476252,123.58,123.53,4.2736155]
[1769357136169,8.57476252,123.57,123.5,12.84837802]
[1769357136377,4.20803408,123.59,123.43,51.84599919]
[1769357136381,8.57476252,123.56,123.51,4.2736155]
[1769357136546,8.57476252,123.56,123.49,4.2736155]
[1769357136753,5.34408856,123.57,123.45,4.2736155]
[1769357136945,8.57476252,123.55,123.48,12.84837802]
[1769357137162,8.57476252,123.55,123.46,8.0996112]
[1769357137163,8.57476252,123.54,123.47,8.57476252]
[1769357137681,8.57476252,123.54,123.46,12.3732267]
[1769357137682,8.57476252,123.54,123.48,20.94651727]
[1769357137869,8.57476252,123.55,123.48,20.94623765]
[1769357138059,8.09199977,123.58,123.49,8.57476252]
[1769357138060,8.57476252,123.56,123.49,8.57476252]
[1769357138366,45.80739156,123.62,123.48,8.09785963]
[1769357138367,8.57476252,123.62,123.56,4.2736155]
[1769357138870,8.57476252,123.62,123.56,12.84837802]
[1769357139164,8.57476252,123.62,123.48,54.05840829]
[1769357139165,12.29782973,123.62,123.51,12.36954376]
[1769357139461,4.20803408,123.6,123.48,8.57476252]
[1769357139664,4.20803408,123.53,123.48,8.57476252]
[1769357140255,29.63408856,123.61,123.53,4.2736155]
[1769357140256,4.20803408,123.61,123.53,4.2736155]
[1769357140571,12.7827966,123.61,123.55,8.57476252]
[1769357140767,4.20803408,123.64,123.58,8.57476252]
[1769357140982,8.57476252,123.63,123.57,12.84837802]
[1769357141661,4.20803408,123.64,123.59,8.57476252]
[1769357141861,12.7827966,123.66,123.6,8.57476252]
[1769357142175,4.20803408,123.66,123.6,8.57476252]
[1769357142382,4.20803408,123.66,123.61,8.57476252]
[1769357142554,8.57476252,123.67,123.61,8.57476252]
[1769357142954,8.57476252,123.67,123.61,12.84837802]
[1769357143259,8.57476252,123.62,123.56,12.84837802]
[1769357143677,8.57476252,123.63,123.57,8.57476252]
[1769357144074,4.20803408,123.64,123.56,4.2736155]
[1769357144279,8.57476252,123.63,123.57,8.57476252]
[1769357144570,4.20803408,123.64,123.58,8.57476252]
[1769357144571,12.7827966,123.64,123.58,8.57476252]
[1769357145276,4.20803408,123.64,123.58,8.57476252]
[1769357145666,8.57476252,123.65,123.58,8.57476252]
[1769357145869,8.08741787,123.65,123.58,12.84837802]
[1769357146072,8.57476252,123.64,123.58,12.84837802]
[1769357147576,8.57476252,123.65,123.58,12.84837802]
[1769357148173,12.7827966,123.61,123.55,8.57476252]
[1769357148569,12.7827966,123.61,123.54,12.36805792]
[1769357148773,12.7827966,123.61,123.54,12.84837802]
[1769357148984,4.20803408,123.61,123.55,8.57476252]
[1769357149352,4.20803408,123.61,123.55,16.66865073]
[1769357149558,12.29652993,123.64,123.56,8.57476252]
[1769357149862,8.57476252,123.62,123.56,12.84837802]
[1769357150561,8.57476252,123.63,123.56,12.84837802]
[1769357150977,12.2960792,123.64,123.55,8.09388821]
[1769357150978,8.57476252,123.64,123.58,4.2736155]
[1769357151163,12.7827966,123.65,123.58,12.84837802]
[1769357151565,8.57476252,123.67,123.61,12.84837802]
[1769357151871,12.7827966,123.66,123.59,12.84837802]
[1769357152074,12.7827966,123.68,123.62,4.2736155]
[1769357152272,8.57476252,123.69,123.63,4.2736155]
[1769357152457,8.57476252,123.68,123.63,4.2736155]
[1769357153267,8.57476252,123.67,123.61,4.2736155]
[1769357153680,8.57476252,123.66,123.61,4.2736155]
[1769357153863,12.7827966,123.62,123.56,8.57476252]
[1769357154061,4.20803408,123.62,123.56,12.84837802]
[1769357154261,12.7827966,123.62,123.56,12.84837802]
[1769357154800,12.7827966,123.62,123.56,8.57476252]
[1769357154970,8.57476252,123.63,123.57,4.2736155]
[1769357155681,5.72213266,123.63,123.57,4.2736155]
[1769357156264,5.72213266,123.61,123.55,9.99574816]
[1769357157189,4.20803408,123.63,123.55,9.99574816]
[1769357157382,5.72213266,123.61,123.55,9.99574816]
[1769357157569,5.72213266,123.61,123.55,4.2736155]
[1769357157758,13.81216265,123.61,123.55,4.2736155]
[1769357158166,13.81216265,123.61,123.54,5.72213266]
[1769357158167,13.81216265,123.61,123.53,4.2736155]
[1769357158370,4.20803408,123.6,123.53,4.2736155]
[1769357158582,5.72213266,123.59,123.53,4.2736155]
[1769357158991,5.72213266,123.59,123.53,9.99574816]
[1769357159502,5.72213266,123.6,123.54,4.2736155]
[1769357159792,5.72213266,123.59,123.54,4.2736155]
[1769357160583,4.20803408,123.64,123.57,9.99574816]
[1769357160792,4.20803408,123.64,123.55,4.2736155]
[1769357160793,5.72213266,123.59,123.55,4.2736155]
[1769357160962,8.0881578,123.64,123.56,4.2736155]
[1769357161161,5.72213266,123.63,123.58,4.2736155]
[1769357161363,5.72213266,123.62,123.58,4.2736155]
[1769357161665,5.72213266,123.64,123.58,4.2736155]
[1769357161864,12.29545707,123.65,123.58,4.2736155]
[1769357161865,5.72213266,123.63,123.58,4.2736155]
[1769357162058,5.72213266,123.6,123.54,9.99574816]
[1769357162274,5.72213266,123.59,123.53,5.72213266]
[1769357162475,5.72213266,123.61,123.56,4.2736155]
[1769357162666,24.29,123.63,123.54,4.2736155]
[1769357162667,5.72213266,123.6,123.54,4.2736155]
[1769357162868,8.08742299,123.65,123.58,4.13574568]
[1769357163183,5.72213266,123.65,123.59,4.13574568]
[1769357163383,5.72213266,123.65,123.58,5.72213266]
[1769357163384,4.0586237,123.76,123.65,4.13574568]
[1769357163560,5.72213266,123.74,123.68,4.13574568]
[1769357163965,13.8039438,123.74,123.68,4.13574568]
[1769357164161,5.72213266,123.74,123.68,4.13574568]
[1769357164586,12.14020177,123.74,123.66,9.85787834]
[1769357164787,5.72213266,123.73,123.67,4.13574568]
[1769357164985,5.72213266,123.73,123.6,11.06622122]
[1769357164986,4.0586237,123.71,123.63,4.13574568]
[1769357165190,4.0586237,123.71,123.55,40.46664664]
[1769357165191,5.72213266,123.65,123.6,4.13574568]
[1769357165370,5.72213266,123.65,123.58,5.72213266]
[1769357165371,5.72213266,123.63,123.58,4.13574568]
[1769357165776,9.78075636,123.64,123.58,4.13574568]
[1769357165993,5.72213266,123.63,123.58,4.13574568]
[1769357166195,4.0586237,123.63,123.56,4.13574568]
[1769357166488,5.72213266,123.61,123.57,4.13574568]
[1769357166690,5.72213266,123.61,123.55,4.13574568]
[1769357167091,5.72213266,123.61,123.6,0.66554618]
[1769357167286,5.72213266,123.61,123.55,4.13574568]
[1769357167693,5.72213266,123.61,123.55,12.22947483]
[1769357167882,5.72213266,123.61,123.56,4.13574568]
[1769357168072,5.72213266,123.62,123.56,4.13574568]
[1769357168273,5.72213266,123.61,123.56,4.13574568]
[1769357168468,8.08869654,123.63,123.42,4.13574568]
[1769357168469,4.01803746,123.56,123.42,4.13574568]
[1769357168673,5.72213266,123.43,123.36,5.72213266]
[1769357168875,5.72213266,123.43,123.31,29.50963294]
[1769357168876,9.69998974,123.4,123.32,9.85787834]
[1769357169091,5.72213266,123.39,123.32,9.85787834]
[1769357169270,3.97785708,123.4,123.32,9.85787834]
[1769357169473,29.63408856,123.46,123.31,29.50963294]
[1769357169474,5.72213266,123.36,123.31,29.50963294]
[1769357169688,12.58266029,123.37,123.31,29.50963294]
[1769357169887,24.29,123.44,123.31,33.64537862]
[1769357169888,8.60480321,123.36,123.31,33.64537862]
[1769357170290,8.60480321,123.37,123.31,33.64537862]
[1769357170486,12.58266029,123.36,123.31,29.50963294]
[1769357171098,3.97785708,123.4,123.32,4.13574568]
[1769357171304,3.97785708,123.4,123.31,29.50963294]
[1769357171599,8.60480321,123.38,123.32,4.13574568]
[1769357172004,8.60480321,123.35,123.31,29.50963294]
[1769357172190,8.60480321,123.36,123.31,29.50963294]
[1769357172593,8.60480321,123.38,123.31,37.6192667]
[1769357172797,3.97785708,123.42,123.33,12.74054889]
[1769357173100,8.60480321,123.39,123.33,4.13574568]
[1769357173786,8.60480321,123.4,123.34,4.13574568]
[1769357173981,8.60480321,123.41,123.35,4.13574568]
[1769357174182,8.10044552,123.45,123.37,4.13574568]
[1769357174380,9.33871896,123.47,123.39,4.13574568]
[1769357174381,3.97785708,123.46,123.39,4.13574568]
[1769357174582,3.97785708,123.46,123.37,4.4600747]
[1769357174901,8.09955508,123.47,123.33,8.60480321]
[1769357174902,8.60480321,123.39,123.33,8.60480321]
[1769357175093,8.60480321,123.38,123.32,21.17371869]
[1769357175280,12.58266029,123.38,123.31,29.50963294]
[1769357175479,12.58266029,123.37,123.31,29.50963294]
[1769357175699,8.60480321,123.35,123.31,29.50963294]
[1769357176083,5.34408856,123.41,123.27,4.4600747]
[1769357176084,8.60480321,123.32,123.27,4.4600747]
[1769357176288,8.60480321,123.32,123.26,4.4600747]
[1769357176595,12.58266029,123.31,123.24,13.06487791]
[1769357176798,12.58266029,123.33,123.26,8.60480321]
[1769357176993,12.58266029,123.33,123.26,16.71770238]
[1769357177201,3.97785708,123.32,123.26,16.71770238]
[1769357177412,3.97785708,123.3,123.22,8.60480321]
[1769357177718,3.97785708,123.3,123.22,13.06487791]
[1769357177919,8.60480321,123.29,123.22,13.06487791]
[1769357178084,3.97785708,123.25,123.17,4.4600747]
[1769357178287,3.97785708,123.22,123.17,8.60480321]
[1769357178498,3.97785708,123.29,123.19,16.72192569]
[1769357178696,3.97785708,123.28,123.23,8.60480321]
[1769357179212,12.58266029,123.24,123.16,4.4600747]
[1769357179513,3.97785708,123.26,123.18,4.4600747]
[1769357179814,5.34408856,123.29,123.18,13.06487791]
[1769357179815,3.97785708,123.25,123.18,13.06487791]
[1769357179984,12.58266029,123.24,123.17,12.57884189]
[1769357180308,3.97785708,123.22,123.17,8.60480321]
[1769357180607,3.97785708,123.21,123.13,4.4600747]
[1769357180811,3.97785708,123.22,123.16,16.7237139]
[1769357181015,8.60480321,123.25,123.19,4.4600747]
[1769357181186,3.97785708,123.32,123.23,13.06487791]
[1769357181392,8.60480321,123.3,123.24,8.60480321]
[1769357181595,8.60480321,123.29,123.23,13.06487791]
[1769357181911,40.74058875,123.39,123.18,28.41365734]
[1769357181912,12.58266029,123.33,123.26,8.60480321]
[1769357182088,3.97785708,123.32,123.24,4.4600747]
[1769357182296,3.97785708,123.31,123.25,8.60480321]
[1769357182618,12.58266029,123.33,123.27,8.60480321]
[1769357182783,0.1,123.78,123.27,8.60480321]
[1769357182784,12.58266029,123.35,123.29,8.60480321]
[1769357182984,40.46773028,123.46,123.31,13.06487791]
[1769357182985,8.10498511,123.39,123.31,13.06487791]
[1769357183190,3.97785708,123.4,123.33,8.60480321]
[1769357183191,12.58266029,123.4,123.33,8.60480321]
[1769357183520,8.60480321,123.43,123.37,13.06487791]
[1769357183816,3.97785708,123.49,123.4,8.60480321]
[1769357184005,8.60480321,123.46,123.42,4.4600747]
[1769357184212,8.60480321,123.43,123.37,8.60480321]
[1769357184412,8.60480321,123.41,123.34,13.06487791]
[1769357184629,8.60480321,123.4,123.33,13.06487791]
[1769357184921,3.97785708,123.4,123.31,13.06487791]
[1769357185130,8.60480321,123.39,123.32,8.60480321]
[1769357185290,3.97785708,123.4,123.31,12.56956893]
[1769357185291,8.60480321,123.36,123.31,4.4600747]
[1769357185494,8.60480321,123.4,123.21,0.81162243]
[1769357185720,8.60480321,123.22,123.02,4.5]
[1769357185914,8.60480321,123.22,123.07,4.5]
[1769357185915,4.20267921,123.13,123.07,4.5]
[1769357186119,4.20267921,123.13,123.04,30.0]
[1769357186120,4.16065241,123.2,123.1,8.60480321]
[1769357186329,8.60480321,123.15,123.06,4.4600747]
[1769357186498,4.16065241,123.12,123.05,8.60480321]
[1769357186815,4.16065241,123.17,123.08,8.60480321]
[1769357187017,8.60480321,123.2,123.13,4.4600747]
[1769357187219,8.60480321,123.2,123.01,41.12342209]
[1769357187220,8.60480321,123.16,123.08,21.18957837]
[1769357187426,12.76545562,123.19,123.11,8.60480321]
[1769357187735,12.79591483,123.15,123.07,3.9600747]
[1769357187896,29.63408856,123.2,122.95,1.20292735]
[1769357187897,4.44887522,123.1,122.95,0.3895886]
[1769357188095,4.44887522,123.11,123.03,8.63526242]
[1769357188291,8.087,123.29,123.0,58.26881922]
[1769357188292,4.44887522,123.22,123.09,8.63526242]
[1769357188492,16.74826935,123.26,123.18,8.63526242]
[1769357188712,13.08413764,123.23,123.04,8.63526242]
[1769357188921,8.63526242,123.22,123.15,8.63526242]
[1769357189419,4.44887522,123.23,123.13,8.63526242]
[1769357189592,8.63526242,123.21,123.13,8.63526242]
[1769357189798,4.44887522,123.21,123.14,8.63526242]
[1769357189999,8.11309747,123.26,123.12,4.4600747]
[1769357190246,8.11309747,123.26,123.19,8.63526242]
[1769357190247,16.74835989,123.26,123.19,8.63526242]
[1769357190429,16.74835989,123.26,123.09,5.34408856]
[1769357190430,4.44887522,123.3,123.23,8.63526242]
[1769357190595,13.08413764,123.3,123.22,13.09533712]
[1769357190937,8.63526242,123.28,123.24,4.4600747]
[1769357191133,12.5580249,123.32,123.23,13.09533712]
[1769357191134,8.63526242,123.31,123.23,13.09533712]
[1769357191299,12.5580249,123.32,123.24,4.4600747]
[1769357191300,8.63526242,123.32,123.24,4.4600747]
[1769357191498,8.63526242,123.32,123.19,28.4112784]
[1769357191499,8.63526242,123.34,123.27,8.63526242]
[1769357191732,4.44887522,123.38,123.3,8.63526242]
[1769357192034,4.44887522,123.38,123.21,40.25767419]
[1769357192035,8.63526242,123.39,123.31,13.09533712]
[1769357192242,8.63526242,123.4,123.33,13.09533712]
[1769357192399,8.63526242,123.39,123.34,4.4600747]
[1769357192753,8.63526242,123.39,123.32,4.4600747]
[1769357192901,4.17046204,123.4,123.33,8.63526242]
[1769357193102,12.80572446,123.38,123.26,4.42742119]
[1769357193426,8.63526242,123.37,123.3,8.63526242]
[1769357193719,8.63526242,123.38,123.31,4.42742119]
[1769357193905,28.35858357,123.42,123.31,13.06268361]
[1769357193906,4.17046204,123.39,123.31,13.06268361]
[1769357194218,12.80572446,123.39,123.31,21.17216596]
[1769357194428,8.63526242,123.38,123.31,4.42742119]
[1769357194724,4.17046204,123.39,123.31,4.42742119]
[1769357194725,4.17046204,123.39,123.32,8.63526242]
[1769357194907,30.01605973,123.46,123.38,4.42742119]
[1769357194908,8.09993975,123.46,123.38,4.42742119]
[1769357195226,8.09993975,123.46,123.39,8.63526242]
[1769357195227,8.63526242,123.46,123.39,8.63526242]
[1769357195405,8.63526242,123.46,123.31,28.38327716]
[1769357195406,8.63526242,123.46,123.38,8.63526242]
[1769357195600,8.63526242,123.44,123.37,8.63526242]
[1769357195800,8.63526242,123.44,123.31,28.38327716]
[1769357195801,8.63526242,123.39,123.31,16.74443367]
[1769357195997,8.63526242,123.39,123.29,20.27704379]
[1769357195998,12.80572446,123.39,123.32,8.63526242]
[1769357196200,12.80572446,123.39,123.31,8.10947578]
[1769357196432,12.80572446,123.39,123.32,8.63526242]
[1769357196928,8.63526242,123.37,123.29,8.63526242]
[1769357197112,8.63526242,123.37,123.3,4.42742119]
[1769357197317,8.63526242,123.38,123.31,4.42742119]
[1769357197508,8.63526242,123.38,123.31,13.06268361]
[1769357197710,9.5145506,123.41,123.25,63.08791054]
[1769357197711,4.17046204,123.44,123.35,4.42742119]
[1769357197915,8.63526242,123.4,123.35,4.42742119]
[1769357198118,8.63526242,123.41,123.35,4.42742119]
[1769357198315,8.63526242,123.4,123.33,8.63526242]
[1769357198521,8.63526242,123.4,123.33,21.17084849]
[1769357198833,4.17046204,123.36,123.3,8.63526242]
[1769357199134,4.17046204,123.36,123.3,8.11026373]
[1769357199454,8.63526242,123.41,123.35,4.42742119]
[1769357200334,8.63526242,123.4,123.33,8.63526242]
[1769357200523,8.63526242,123.38,123.3,8.63526242]
[1769357200727,8.63526242,123.37,123.29,12.53821056]
[1769357200936,8.63526242,123.36,123.29,21.17347298]
[1769357201154,4.17046204,123.41,123.32,8.10848767]
[1769357201341,8.63526242,123.39,123.32,21.17117128]
[1769357201635,12.80572446,123.41,123.34,8.63526242]
[1769357201829,12.80572446,123.41,123.33,21.17068694]
[1769357202033,8.63526242,123.41,123.34,13.06268361]
[1769357202233,8.63526242,123.44,123.38,4.42742119]
[1769357202732,12.80572446,123.46,123.39,13.06268361]
[1769357202937,8.63526242,123.44,123.39,4.42742119]
[1769357203335,8.63526242,123.44,123.37,16.74078888]
[1769357203336,8.63526242,123.45,123.38,8.63526242]
[1769357203538,8.63526242,123.47,123.41,4.42742119]
[1769357203737,8.63526242,123.48,123.42,4.42742119]
[1769357203939,12.3664874,123.52,123.44,4.42742119]
[1769357204132,8.63526242,123.51,123.44,13.06268361]
[1769357204435,8.63526242,123.49,123.42,13.06268361]
[1769357204632,8.63526242,123.5,123.43,8.63526242]
[1769357204832,20.90275732,123.51,123.44,13.06268361]
[1769357205031,0.1,123.52,123.42,8.10234052]
[1769357205032,0.1,123.52,123.46,4.42742119]
[1769357205338,0.1,123.52,123.42,8.63526242]
[1769357205339,12.80572446,123.49,123.42,8.63526242]
[1769357205643,8.63526242,123.47,123.41,4.42742119]
[1769357205837,8.63526242,123.46,123.39,13.06268361]
[1769357206029,37.09572446,123.47,123.4,13.06268361]
[1769357206235,4.17046204,123.46,123.34,4.20181149]
[1769357206415,5.36086188,123.42,123.23,8.63526242]
[1769357206617,8.63526242,123.33,123.25,4.47914768]
[1769357207338,5.34408856,123.36,123.16,40.04421106]
[1769357207339,8.63526242,123.27,123.22,4.47914768]
[1769357208029,8.63526242,123.29,123.22,4.47914768]
[1769357208417,8.63526242,123.28,123.23,4.47914768]
[1769357208614,8.63526242,123.27,123.23,4.47914768]
[1769357209637,13.99954643,123.26,123.23,4.47914768]
[1769357210341,13.99954643,123.26,123.24,4.47914768]
[1769357210539,8.63526242,123.34,123.26,3.95874894]
[1769357210740,8.63526242,123.35,123.27,12.59401136]
[1769357210921,8.63526242,123.35,123.27,3.95874894]
[1769357210922,8.63526242,123.34,123.27,3.95874894]
[1769357211549,4.17046204,123.34,123.27,8.63526242]
[1769357211848,4.17046204,123.34,123.27,16.74699585]
[1769357212339,4.17046204,123.32,123.26,8.63526242]
[1769357212526,4.17046204,123.32,123.25,8.63526242]
[1769357213124,4.17046204,123.32,123.26,8.63526242]
[1769357213327,4.17046204,123.32,123.26,16.74774852]
[1769357213728,12.80572446,123.35,123.28,8.63526242]
[1769357213942,8.63526242,123.29,123.04,4.42742119]
[1769357214129,8.63526242,123.09,123.0,38.44924746]
[1769357214323,8.63526242,123.09,122.89,24.03126158]
[1769357214324,8.63526242,123.04,122.74,24.93502918]
[1769357214545,5.36086188,122.95,122.7,30.81227784]
[1769357214745,32.82787869,123.04,122.83,8.63526242]
[1769357214746,8.63526242,122.94,122.83,8.63526242]
[1769357214946,8.63526242,122.99,122.82,22.52]
[1769357215270,40.2091925,123.12,122.93,8.63526242]
[1769357215438,8.63526242,123.01,122.93,8.63526242]
[1769357215629,45.64275184,123.09,122.81,8.47492707]
[1769357215630,8.12479688,123.08,122.88,8.63526242]
[1769357215944,4.20746703,123.13,122.89,5.36086188]
[1769357215945,8.63526242,123.05,122.89,5.36086188]
[1769357216246,8.63526242,123.03,122.9,4.5]
[1769357216438,8.63526242,123.03,122.96,4.5]
[1769357217033,24.29,123.11,122.97,13.13526242]
[1769357217235,4.20746703,123.13,122.99,4.5]
[1769357217426,4.20746703,123.13,123.04,13.13526242]
[1769357217627,8.63526242,123.12,123.05,13.13526242]
[1769357217938,4.20746703,123.13,123.08,4.5]
[1769357218141,4.20746703,123.13,123.08,8.63526242]
[1769357218336,4.20746703,123.13,123.09,8.63526242]
[1769357218545,4.20746703,123.13,123.1,8.63526242]
[1769357218931,4.20746703,123.13,123.11,8.63526242]
[1769357219137,8.63526242,123.21,123.12,8.63526242]
[1769357219344,8.63526242,123.18,123.12,8.63526242]
[1769357219559,8.63526242,123.18,123.11,8.63526242]
[1769357219855,8.63526242,123.18,123.12,8.63526242]
[1769357220053,4.17046204,123.21,123.05,109.71135085]
[1769357220270,4.17046204,123.24,123.18,8.63526242]
[1769357220428,4.17046204,123.27,123.19,8.63526242]
[1769357220634,4.17046204,123.3,123.21,8.63526242]
[1769357220945,29.81398504,123.31,123.08,5.36086188]
[1769357220946,8.63526242,123.24,123.17,8.63526242]
[1769357221142,4.17046204,123.26,123.19,8.63526242]
[1769357221143,8.63526242,123.25,123.19,8.63526242]
[1769357221454,4.17046204,123.26,123.2,8.63526242]
[1769357221632,12.80572446,123.27,123.2,8.63526242]
[1769357221829,8.63526242,123.25,123.19,8.63526242]
[1769357222055,12.80572446,123.26,123.19,16.75262114]
[1769357222436,12.80572446,123.26,123.2,8.63526242]
[1769357222638,12.80572446,123.23,123.15,8.12016708]
[1769357222957,8.63526242,123.25,123.19,8.63526242]
[1769357223139,8.63526242,123.24,123.18,8.63526242]
[1769357223540,8.63526242,123.24,123.18,16.75320878]
[1769357223862,8.63526242,123.19,123.09,4.5]
[1769357224152,8.63526242,123.17,123.11,4.5]
[1769357224358,8.63526242,123.16,123.08,4.5]
[1769357224529,8.63526242,123.16,123.01,22.54]
[1769357224530,8.63526242,123.13,123.06,8.63526242]
[1769357224728,8.63526242,123.17,123.1,8.63526242]
[1769357224934,8.63526242,123.19,123.12,4.5]
[1769357225143,8.63526242,123.18,123.12,4.5]
[1769357225355,5.34408856,123.21,123.1,4.5]
[1769357225548,8.63526242,123.13,123.08,12.62470602]
[1769357225751,8.63526242,123.09,123.04,4.5]
[1769357226057,8.12214177,123.13,123.03,8.63526242]
[1769357226242,13.46366861,123.16,123.06,13.13526242]
[1769357226443,8.63526242,123.12,123.06,13.13526242]
[1769357227154,8.63526242,123.15,123.08,8.63526242]
[1769357227456,8.63526242,123.11,123.04,4.5]
[1769357227665,8.63526242,123.11,123.05,4.5]
[1769357228165,8.63526242,123.1,123.03,4.5]
[1769357228457,8.12017864,123.15,123.05,8.12641669]
[1769357228458,8.63526242,123.11,123.05,8.12641669]
[1769357228654,8.63526242,123.08,123.02,8.63526242]
[1769357228955,5.34408856,123.12,122.99,4.5]
[1769357228956,8.63526242,123.06,122.99,4.5]
[1769357229143,8.63526242,123.04,122.94,4.5]
[1769357229350,8.63526242,123.06,122.99,13.13526242]
[1769357229543,8.63526242,123.1,123.04,8.63526242]
[1769357229743,8.63526242,123.1,123.03,13.13526242]
[1769357229944,8.63526242,123.09,123.03,13.13526242]
[1769357230341,8.63526242,123.1,123.04,4.5]
[1769357230585,8.63526242,123.09,123.03,8.63526242]
[1769357230734,8.12266393,123.12,122.98,4.5]
[1769357230938,8.63526242,123.06,122.98,4.5]
[1769357231249,8.63526242,123.05,122.99,13.13526242]
[1769357231450,8.63526242,123.05,122.98,8.1313248]
[1769357231661,8.63526242,123.04,122.97,8.63526242]
[1769357231841,8.63526242,123.04,122.9,45.89906936]
[1769357231842,13.97935098,123.04,122.82,4.5]
[1769357232038,5.36086188,123.05,122.89,4.5]
[1769357232252,8.12743823,123.04,122.94,8.63526242]
[1769357232559,8.63526242,123.01,122.95,4.5]
[1769357232763,8.63526242,123.01,122.9,69.16188014]
[1769357232764,5.36086188,123.13,122.91,4.5]
[1769357232950,5.36086188,123.13,122.9,69.16188014]
[1769357232951,8.63526242,123.05,122.99,4.5]
[1769357233152,8.63526242,123.02,122.9,28.47839764]
[1769357233366,4.06529244,122.96,122.75,40.90183559]
[1769357233568,8.63526242,122.92,122.85,8.63526242]
[1769357233750,8.63526242,122.89,122.8,20.35829741]
[1769357234072,40.10065692,123.0,122.75,63.29093273]
[1769357234073,5.36086188,122.99,122.89,8.13720699]
[1769357234264,4.06529244,123.0,122.92,8.63526242]
[1769357234265,8.63526242,122.98,122.92,8.63526242]
[1769357234456,8.63526242,123.0,122.93,8.63526242]
[1769357234651,8.63526242,123.0,122.94,8.63526242]
[1769357234853,8.63526242,123.06,122.99,8.63526242]
[1769357235049,8.63526242,123.02,122.9,0.81366965]
[1769357235250,28.42985947,123.11,122.91,4.08670311]
[1769357235251,8.63526242,122.99,122.91,4.08670311]
[1769357235453,4.07892461,123.07,122.91,4.08670311]
[1769357235762,28.42985947,123.11,123.01,4.08670311]
[1769357235964,4.07892461,123.18,123.05,8.63526242]
[1769357236142,8.63526242,123.2,123.09,4.08670311]
[1769357236143,8.11688311,123.2,123.09,4.08670311]
[1769357236343,28.4090909,123.2,123.09,4.08670311]
[1769357236652,4.07892461,123.17,123.06,4.08670311]
[1769357237159,8.63526242,123.08,123.0,12.72196553]
[1769357237465,4.07892461,123.04,122.94,4.08670311]
[1769357237669,8.63526242,122.99,122.92,12.72196553]
[1769357237871,8.63526242,122.97,122.9,8.63526242]
[1769357238045,8.63526242,122.97,122.87,4.08670311]
[1769357238046,8.63526242,122.94,122.87,4.08670311]
[1769357238363,24.29,123.05,122.87,4.08670311]
[1769357238364,13.97935098,123.0,122.92,8.63526242]
[1769357238542,8.12825537,123.03,122.95,4.08670311]
[1769357238743,8.12825537,123.03,122.87,68.78628309]
[1769357238744,8.63526242,122.99,122.92,4.08670311]
[1769357238942,8.63526242,123.0,122.94,4.08670311]
[1769357239345,5.34408856,123.01,122.88,4.08670311]
[1769357239679,8.63526242,122.94,122.87,4.08670311]
[1769357239892,8.63526242,122.95,122.88,4.08670311]
[1769357240046,8.63526242,122.9,122.83,8.63526242]
[1769357240244,4.07892461,122.93,122.82,4.08670311]
[1769357240245,8.63526242,122.89,122.82,4.08670311]
[1769357240469,4.07892461,122.91,122.82,4.08670311]
[1769357240680,4.07892461,123.03,122.89,4.08670311]
[1769357240886,9.42301317,123.02,122.94,8.63526242]
[1769357241052,8.63526242,122.98,122.91,4.08670311]
[1769357241373,8.63526242,122.98,122.88,12.72196553]
[1769357241374,4.07892461,122.98,122.88,12.72196553]
[1769357241577,4.07892461,122.98,122.88,4.08670311]
[1769357241878,8.63526242,123.03,122.96,12.72196553]
[1769357242181,5.34408856,123.04,122.96,4.08670311]
[1769357242387,8.63526242,123.03,122.97,4.08670311]
[1769357242674,8.63526242,123.07,123.0,12.72196553]
[1769357242860,8.63526242,123.06,123.0,4.08670311]
[1769357243060,8.63526242,123.05,122.96,8.13256235]
[1769357243247,8.63526242,122.98,122.91,8.63526242]
[1769357243666,8.63526242,122.99,122.92,8.63526242]
[1769357243872,5.34408856,123.02,122.94,4.08670311]
[1769357244062,8.63526242,123.01,122.94,8.63526242]
[1769357244265,8.63526242,122.99,122.92,4.08670311]
[1769357244482,8.63526242,122.99,122.83,40.70666775]
[1769357244657,5.34408856,123.0,122.9,8.63526242]
[1769357244861,8.63526242,122.95,122.88,8.63526242]
[1769357245079,5.34408856,122.99,122.86,8.63526242]
[1769357245080,12.71418703,122.93,122.86,8.63526242]
[1769357245659,12.71418703,122.93,122.85,8.13986315]
[1769357245660,8.63526242,122.92,122.85,8.63526242]
[1769357245861,12.71418703,122.92,122.85,8.63526242]
[1769357246195,4.07892461,122.92,122.85,8.63526242]
[1769357246397,4.07892461,122.98,122.88,8.13788865]
[1769357246561,8.63526242,122.97,122.9,8.63526242]
[1769357246757,8.63526242,122.97,122.9,12.72196553]
[1769357246987,8.63526242,122.97,122.91,4.08670311]
[1769357247369,8.63526242,123.03,122.96,12.72196553]
[1769357247571,8.63526242,123.03,122.88,57.67591523]
[1769357247572,8.63526242,123.07,123.0,12.72196553]
[1769357247770,8.63526242,123.04,122.97,4.08670311]
[1769357247968,8.63526242,123.06,122.99,8.63526242]
[1769357248372,8.63526242,123.08,123.02,8.63526242]